Cogmind - Beta 9.6 @@@ ROGUE MODE // 2020.06.22 @ 21:32:05 Player: Demise Result: Destroyed by H-55 Commando with Assault Rifle Performance ------------- Evolutions (0) 0 Regions Visited (3) 600 Robots Destroyed (27) 135 Value Destroyed (815) 815 Prototype IDs (22) 440 Alien Tech Used (0) 0 Bonus (296) 296 TOTAL SCORE: 2286 Bonus ------- Aligned with FarCom 300 Friendly Fire -4 Cogmind --------- Core Integrity 0/250 Matter 285/300 Energy 0/100 System Corruption 0% Temperature Cool (722) Movement Core (50) Location -10/Exiles Parts ------- > --- POWER (1) -------- (None) > --- PROPULSION (2) --- (None) > --- UTILITY (2) ------ (None) > --- WEAPON (2) ------- (None) > --- INVENTORY (4) ---- Humpback Mining Laser Peak State ------------ > --- POWER ------------ Ion Engine > --- PROPULSION ------- Light Treads > --- UTILITY ---------- Humpback > --- WEAPON ----------- Firepult > --- INVENTORY -------- Light Ion Engine Light Treads Small Storage Unit Small Storage Unit Medium Storage Unit Humpback High-capacity Battery Large Matter Pod Improved Terrain Scanner Seismic Analyzer Light Assault Rifle Light Assault Rifle Mining Laser [Rating: 25] Favorites ----------- Power Ion Engine Engine Ion Engine Propulsion Light Treads Treads Light Treads Leg Aluminum Leg Wheel Wheel Utility Small Storage Unit Device Improved Terrain Scanner Storage Small Storage Unit Weapon Light Assault Rifle Energy Gun Medium Laser Energy Cannon Firepult Ballistic Gun Light Assault Rifle Build | -11 -10 -10 -10 ------- Run | Scr Mat Min Exi Slots Evolved . | . . . . Power . | . . . . Propulsion . | . . . . Utility . | . . . . Weapon . | . . . . Parts Attached 18 | 8 2 1 7 Power 1 | . . . 1 Engine 1 | . . . 1 Core . | . . . . Reactor . | . . . . Propulsion 8 | 6 1 . 1 Treads 2 | . 1 . 1 Leg . | . . . . Wheel 6 | 6 . . . Hover . | . . . . Flight . | . . . . Utility 4 | 2 1 . 1 Device 1 | 1 . . . Storage 3 | 1 1 . 1 Processor . | . . . . Hackware . | . . . . Protection . | . . . . Artifact . | . . . . Weapon 5 | . . 1 4 Energy Gun . | . . . . Energy Cannon 1 | . . . 1 Ballistic Gun 4 | . . 1 3 Ballistic Cannon . | . . . . Launcher . | . . . . Special Weapon . | . . . . Impact Weapon . | . . . . Slashing Weapon . | . . . . Piercing Weapon . | . . . . Special Melee Weapon . | . . . . Unidentified Prototypes . | . . . . Parts Lost 12 | . 1 2 9 Power 2 | . . . 2 Propulsion 4 | . 1 1 2 Utility 1 | . . . 1 Weapon 5 | . . 1 4 Highest Loss Streak 8 | . 1 2 8 Average Slot Usage (%) 78 | . 97 93 67 Engine 13 | . 14 14 12 Treads 11 | . 6 14 13 Wheel 6 | . 19 9 . Storage 20 | . 28 28 15 Energy Gun 4 | . 14 6 . Energy Cannon 2 | . . . 3 Ballistic Gun 18 | . 14 20 21 Naked Turns 2 | . . . 2 Heaviest Build 107 | 16 20 20 107 Greatest Support 32 | 32 20 20 20 Greatest Overweight (x) 5 | 1 1 1 5 Average Overweight (x) 1 | . . . 3 Largest Inventory Capacity 24 | 8 10 10 24 Average Capacity 16 | 7 8 10 21 Most Carried 14 | 8 8 8 14 Average Carried 9 | 7 7 7 11 Final Capacity 10 | 8 10 10 4 Final Carried 8 | 8 8 7 3 Class Distribution -------------------- 50% | Mutant 49% | Hauler-Mutant Dominant Class ---------------- Mutant | -10/Materials Mutant | -10/Mines Hauler-Mutant | -10/Exiles Resources | -11 -10 -10 -10 ----------- Run | Scr Mat Min Exi Matter Collected 402 | 319 33 20 30 Remotely . | . . . . Salvage Created 919 | 169 205 51 494 Parts 51 | 23 11 3 14 Haulers Intercepted . | . . . . Recyclers Shooed . | . . . . Parts Field Recycled . | . . . . Retrieved Matter . | . . . . Parts Self-Destructed . | . . . . Prevented . | . . . . Kills | -11 -10 -10 -10 ------- Run | Scr Mat Min Exi Combat Hostiles Destroyed 20 | . 5 3 12 Guns 8 | . 5 3 . Cannons 2 | . . . 2 AOE 8 | . . . 8 Classes Destroyed 8 | 3 1 1 3 Worker 1 | 1 . . . Tunneler 5 | 5 . . . Recycler 1 | 1 . . . Swarmer 3 | . . 3 . Grunt 10 | . 5 . 5 Demolisher 1 | . . . 1 Hunter 2 | . . . 2 Programmer 4 | . . . 4 Best Kill Streak 7 | 4 2 2 7 Combat Bots Only 7 | . 2 2 7 Max Kills in Single Turn 4 | 1 1 1 4 Gunslinging . | . . . . Exploded 4 | . . . 4 Melee . | . . . . Uniques/NPCs Destroyed . | . . . . Combat | -11 -10 -10 -10 -------- Run | Scr Mat Min Exi Damage Taken 1450 | . 241 127 1082 Core 253 | . 31 15 207 Absorbed by Shields . | . . . . Core Remaining (%) 100 | 100 . . . Volleys Fired 52 | 13 18 12 9 Largest 2 | 2 2 2 1 Hottest 250 | 70 70 70 250 Shots Fired 92 | 26 36 21 9 Gun 83 | 26 36 21 . Cannon 9 | . . . 9 Launcher . | . . . . Special . | . . . . Kinetic 49 | 13 18 18 . Thermal 43 | 13 18 3 9 Explosive . | . . . . Electromagnetic . | . . . . Robot Hit Streak 10 | 6 5 10 3 Robot Miss Streak 4 | 2 3 3 4 Penetration Max . | . . . . Secondary Targets 2 | . 1 1 . Max Gunslinging Chain 1 | . 1 1 . Shots Hit Robots 57 | 15 22 14 6 Core Hits 48 | 8 11 4 25 Critical Hits 1 | . . 1 . Critical Kills 1 | . . 1 . Critical Parts Destroyed . | . . . . Melee Attacks . | . . . . Impact . | . . . . Slashing . | . . . . Piercing . | . . . . Sneak Attacks . | . . . . Combat Hostiles . | . . . . Follow-up Attacks . | . . . . Damage Inflicted 1441 | 172 263 108 898 Guns 543 | 172 263 108 . Cannons 190 | . . . 190 Explosions 708 | . . . 708 Melee . | . . . . Ramming . | . . . . Kinetic 232 | 47 90 95 . Thermal 1209 | 125 173 13 898 Explosive . | . . . . Electromagnetic . | . . . . Impact . | . . . . Slashing . | . . . . Piercing . | . . . . Highest Corruption . | . . . . Average Corruption . | . . . . Corruption Purged . | . . . . Overload Shots . | . . . . Overflow Damage . | . . . . Projectiles . | . . . . Explosions . | . . . . Melee . | . . . . Knockbacks . | . . . . Impact . | . . . . Kinetic . | . . . . Secondary . | . . . . Self-Inflicted Damage 33 | . . . 33 Shots 3 | . . . 3 Rammed . | . . . . Targets Rammed . | . . . . Kicked . | . . . . Crushed . | . . . . Highest Temperature 986 | 100 98 50 986 Average Temperature 187 | 47 40 25 432 Received Heat Transfer 186 | . 108 . 78 Effects 18 | . . . 18 Shutdowns 1 | . . . 1 Energy Bleed 5 | . . . 5 Interference 1 | . . . 1 Matter Decay 3 | . . . 3 Damage (minor) 3 | . . . 3 Damage (major) 5 | . . . 5 Siege Activations . | . . . . Robots Corrupted . | . . . . Combat Hostiles . | . . . . Parts Fried . | . . . . Impact Corruptions . | . . . . Robots Melted 2 | . . . 2 Combat Hostiles 2 | . . . 2 Parts Melted 19 | 1 . . 18 Heat Transferred 5565 | 370 518 37 4640 Parts Sabotaged . | . . . . Parts Stolen . | . . . . Parts Stripped . | . . . . Power Chain Reactions . | . . . . Missiles Intercepted . | . . . . Alert | -11 -10 -10 -10 ------- Run | Scr Mat Min Exi Peak Influence 238 | 35 238 85 . Average Influence 99 | 21 133 58 . Maximum Alert Level 1 | . 1 . . Low Security (%) 84 | 100 75 100 . Level 1 15 | . 24 . . Level 2 . | . . . . Level 3 . | . . . . Level 4 . | . . . . Level 5 . | . . . . High Security . | . . . . Max Security . | . . . . Squads Dispatched 4 | . 4 . . Investigation 2 | . 2 . . Extermination . | . . . . Reinforcement 2 | . 2 . . Assault . | . . . . Garrison . | . . . . Intercept . | . . . . Construction Impeded . | . . . . Haulers Reinforced . | . . . . Stealth | -11 -10 -10 -10 --------- Run | Scr Mat Min Exi Distress Signals 1 | . 1 . . Communications Jammed . | . . . . Distress Signals . | . . . . Times Spotted 42 | . 15 3 24 Peak Tracking Total 18 | . 5 3 18 Tactical Retreats 2 | . 2 . . Traps | -11 -10 -10 -10 ------- Run | Scr Mat Min Exi Traps Triggered 3 | . 3 . . Indirectly . | . . . . Trap Hack Attempts . | . . . . Triggered . | . . . . Disarmed . | . . . . Reprogrammed . | . . . . Reused . | . . . . Traps Extracted . | . . . . Installed . | . . . . Triggered . | . . . . Exploded 1 | . . . 1 Machines | -11 -10 -10 -10 ---------- Run | Scr Mat Min Exi Machines Disabled 1 | . . . 1 Max in Single Turn 1 | . . . 1 Machines Sabotaged . | . . . . Garrisons Compromised . | . . . . Overloaded Fab Kills . | . . . . Fab Network Shutdowns . | . . . . Hacking | -11 -10 -10 -10 --------- Run | Scr Mat Min Exi Machines Accessed 5 | . 3 . 2 Terminals 2 | . 2 . . Fabricators . | . . . . Repair Stations . | . . . . Recycling Units 1 | . 1 . . Scanalyzers . | . . . . Garrison Access . | . . . . Total Hacks 11 | . 9 . 2 Successful 6 | . 4 . 2 Failed 5 | . 5 . . Catastrophic . | . . . . Database Lockouts . | . . . . Manual 10 | . 9 . 1 Terminals 8 | . 8 . . Fabricators . | . . . . Repair Stations . | . . . . Recycling Units 1 | . 1 . . Scanalyzers . | . . . . Garrison Access . | . . . . Terminal Hacks 2 | . . . 2 Record 1 | . . . 1 EX-Prototype ID Bank 1 | . . . 1 Fabricator Hacks . | . . . . Repair Station Hacks . | . . . . Recycling Unit Hacks . | . . . . Scanalyzer . | . . . . Garrison Access Hacks . | . . . . Unauthorized Hacks 4 | . 4 . . Terminals 3 | . 3 . . Track 1 | . 1 . . Botnet 1 | . 1 . . Operators 1 | . 1 . . Fabricators . | . . . . Repair Stations . | . . . . Recycling Units 1 | . 1 . . Tunnel 1 | . 1 . . Scanalyzers . | . . . . Garrison Access . | . . . . Data Cores Recovered . | . . . . Used . | . . . . Hacking Detections 2 | . 2 . . Full Trace Events . | . . . . Feedback Events . | . . . . Feedback Blocked . | . . . . Robot Schematics Acquired . | . . . . Robots Built . | . . . . Matter . | . . . . Time . | . . . . Total Robot Build Rating . | . . . . Part Schematics Acquired . | . . . . Parts Built . | . . . . Matter . | . . . . Time . | . . . . Total Part Build Rating . | . . . . Parts Repaired . | . . . . Time . | . . . . Parts Recycled . | . . . . Recycled Matter . | . . . . Retrieved Matter . | . . . . Retrieved Components . | . . . . Parts Scanalyzed . | . . . . Part Schematics Acquired . | . . . . Parts Damaged . | . . . . Bothacking | -11 -10 -10 -10 ------------ Run | Scr Mat Min Exi Used RIF Installer . | . . . . Robots Hacked . | . . . . Non-combat . | . . . . Combat . | . . . . Robot Hacks Applied . | . . . . Relay Couplers Released . | . . . . Robots Rewired . | . . . . Allies Hacked . | . . . . Hacks Repelled . | . . . . Allies | -11 -10 -10 -10 -------- Run | Scr Mat Min Exi Total Allies . | . . . . Largest Group . | . . . . Highest-Rated Group . | . . . . Highest-Rated Ally . | . . . . Total Orders . | . . . . Ally Attacks . | . . . . Total Damage . | . . . . Kills . | . . . . Allies Corrupted . | . . . . Allies Melted . | . . . . Intel | -11 -10 -10 -10 ------- Run | Scr Mat Min Exi Robot Analysis Total . | . . . . Derelict Logs Recovered 1 | . . 1 . Drone Launches . | . . . . Drone Recoveries . | . . . . Exploration | -11 -10 -10 -10 ------------- Run | Scr Mat Min Exi Turns Passed 1603 | 147 441 85 930 Spaces Moved 849 | 104 308 49 388 Core 3 | . . . 3 Treads 523 | . 122 16 385 Legs 16 | 16 . . . Wheels 307 | 88 186 33 . Hover . | . . . . Flight . | . . . . Fastest Speed 50 | 80 80 90 50 Average Speed 162 | 89 113 112 226 Slowest Speed 260 | 120 160 160 260 Overloaded Moves . | . . . . Propulsion Burnouts . | . . . . Robots Hopped . | . . . . Cave-ins Triggered . | . . . . Exploration Rate (%) 44 | 5 74 24 74 Regions Visited 3 Branch Regions 2 Pre-discovered Areas 2 | . 1 . 1 Known Exits Taken . | . . . . Unknown Exits Taken 3 | 1 1 1 . Scrap Searched . | . . . . Spaces Dug . | . . . . Terrain Destroyed 16 | . . . 16 Melee . | . . . . Projectile 2 | . . . 2 AOE 14 | . . . 14 Actions | -11 -10 -10 -10 --------- Run | Scr Mat Min Exi Total 1003 | 145 367 61 430 Wait 48 | . 40 . 8 Move 846 | 103 307 48 388 Hop . | . . . . Pick Up 18 | 8 . . 10 Fast Attach 9 | 5 . . 4 Attach 6 | 1 1 1 3 Detach 5 | 2 . . 3 Swap 3 | 2 1 . . Drop 16 | 11 . . 5 Fire 52 | 13 18 12 9 Melee . | . . . . Ram . | . . . . Kick . | . . . . Crush . | . . . . Escape Stasis . | . . . . Rewire . | . . . . Trap . | . . . . Miscellaneous . | . . . . Route ------- -11/Scrapyard -10/Materials (discovered 3 exits: [*Mat] / [*Min x2]) -10/Mines (discovered 2 exits: [*Mat] / *Exi) -10/Exiles History --------- Turn | Location | Event 16 | -11/Scrapyard | Discovered new exit (range 3) 148 | -11/Scrapyard | Entered Materials 264 | -10/Materials | Discovered new exit (range 16) 312 | -10/Materials | Build established: Mutant 422 | -10/Materials | Discovered new exit (range 10) 548 | -10/Materials | Discovered new exit (range 5) 589 | -10/Materials | Entered Mines 616 | -10/Mines | Learned 8 Materials zone layouts 618 | -10/Mines | Discovered new exit (range 8) 666 | -10/Mines | Deemed a non-threat by the Exiles lab entrance 667 | -10/Mines | Discovered new exit (range 5) 674 | -10/Mines | Entered Exiles 713 | -10/Exiles | Met 8R-AWN 742 | -10/Exiles | Met EX-HEX 896 | -10/Exiles | Met EX-DEC 952 | -10/Exiles | Visited The Gauntlet 1069 | -10/Exiles | Learned location of Zion (-7) 1104 | -10/Exiles | Build established: Hauler-Mutant 1260 | -10/Exiles | Met EX-BIN 1289 | -10/Exiles | Aligned with FarCom system 1291 | -10/Exiles | Given EX-Vault access code 1346 | -10/Exiles | Opened EX-Vault 1366 | -10/Exiles | Found Firepult 1428 | -10/Exiles | Warned to stay clear of 0b10 Research branches 1452 | -10/Exiles | Exiles lab attacked by MAIN.C 1554 | -10/Exiles | Destroyed 7 combat bots 1568 | -10/Exiles | Attacked by the Exiles 1591 | -10/Exiles | Core integrity fell below 50% 1603 | -10/Exiles | Core integrity fell below 20% 1604 | -10/Exiles | Destroyed by H-55 Commando with Assault Rifle Last Messages --------------- 01595_ Penetrated by HV Slug. 01596_ Overheating: Energy bleed (-16). 01597_ Overheating: Broken Gauss Rifle damaged (-13). 01597_ Acquired Lgt. Assault Rifle. 01598_ Overheating: Broken Gauss Rifle damaged (-9). 01598_ Lgt. Assault Rifle destroyed. 01600_ Overheating: Matter decay (-68). 01600_ Penetrated by HV Slug. 01600_ Critical hit. 01600_ Broken Gauss Rifle destroyed. 01600_ Penetrated by HV Slug. 01601_ Overheating: Energy bleed (-1). 01602_ Penetrated by HV Slug. 01602_ Penetrated by Slug. 01602_ Lgt. Assault Rifle destroyed. 01603_ Slug penetrates G-34 Mercenary. 01603_ G-34 Mercenary destroyed. 01604_ Overheating: Matter decay (-57). 01604_ Slug penetrates as-71352. 01604_ as-71352 destroyed. Map ----- +----------------------------------------------------+ | "?# #?#########??????????????????????????????? | | ??# #?#"""""""#??????????????????????????????? | | ??# #?#"""""""#??????????????????????????????? | | ??# #?#"""""""#??????????????????????????????? | | ?## ###"" """"#??????????????????????????????? | | ?#" """"#??????????????????????????????? | | ?#" """#??????????????????????????????? | | ?#" """#??????????????????????????????? | | ?#" """#??????????????????????????????? | | ?#" """#??????????????????????????????? | | ?#" """##?????????????????????????????? | | ?## """""?????????????????????????????? | | ??# """##?????????????????????????????? | | ??#" "X" """""?????????????????????????????? | | ??#" """ #??????????????????????????????? | | ??#" """""""""#??????????????????????????????? | | ?##" ###########??????????????????????????????? | | ##"" #????????????????????????????????????????? | | #"" #????????????????????????????????????????? | | """ ##???????????????????????????????????????? | | "" ##???###########????????????????????????? | | " ##### ###??????????????????????? | | ! ;#??????????????????????? | | !! #??????????????????????? | | !% ! #??????????????????????? | | !g|@#???????????#####??????? | | h%g##?????????##" #??????? | | %[gg###???????#" #??????? | | """""" hg*! "#??????##" ##?????? | | #####""" h g # ###### ###???? | | ????##### = ## ##### | | ????????## [ #""" | | ?????????#" " == | | ????????##"" h %% ## | | ###??####"""" % % #### | | ####""" ""#?#"""""#### | | """" "##?#######??# | | ###???????????? | | # ??????????????? | | " #???????????????? | | " "" """ ##???????????????? | | ""## ##""" " " ""#" " ###????????????????? | | #### ######""" """##""" ""###??????????????????? | | #??# #????###""""###########????????????????????? | | ??## ####???######??????????????????????????????? | | ??#!! " #???????????????????????????????????????? | | ??#" #???????????????????????????????????????? | | ??#" "#???????????????????????????????????????? | | ??#! "" "#???????????????????????????????????????? | | ??########???????????????????????????????????????? | +----------------------------------------------------+ Best States ------------- Heat Dissipation 25 Energy Generation 10 Energy Capacity 250 Matter Stores 300 Matter Capacity 300 Sight Range 16 Terrain Scan Range 16 Terrain Scan Density 10 Evasion (%) 44 Recoil Reduction 1 Item Schematics ----------------- None Robot Schematics ------------------ None Fabricated ------------ Nothing Alien Tech Used ----------------- None Achievements -------------- None Challenges ------------ None Game ------ Seed PlasmaIonDissipator Manual? 0 Play Time 00:13:26 Cumulative 231.3 hours Start 2020.06.22 @ 21:18:04 End 2020.06.22 @ 21:32:05 Sessions 1 Manual Loads 0 Difficulty Rogue Special Mode None Game No. 305 Rogue 294 Adventurer 11 Explorer 0 Win Type - Total 0 Types 0/0/0/0/0/0/0 Lore% 53 Gallery% 67 Achievement% 45 Wizard Run 0 Options --------- ASCII 0 Keyboard 1 Movement Numpad Keybinds 0 Fullscreen 1 Font 12/Terminus Map View 83x54 Tactical HUD 1 Map Filters NONE Filters NONE Steam 1 RUN: 3b682064-8293-4df6-95c5-c25e02f874b5